Cogmind - Beta 15 --- EXPLORER MODE // 2025.07.23 @ 23:22:16 // Winter2019/RPGLIKE Player: User15V Result: Self-destructed Performance ------------- Evolutions (8) 4000 Regions Visited (12) 2400 Robots Destroyed (81) 405 Value Destroyed (3369) 3369 Prototype IDs (13) 260 Alien Tech Used (0) 0 Bonus (1300) 1300 TOTAL SCORE: 11734 Bonus ------- Entered DSFs 500 Registered with UFD 300 Met Optimus in HQ 500 Cogmind --------- Core Integrity 1190/1350 Matter 316/400 Energy 212/220 System Corruption 0% Temperature Cool (-134) Movement Flying (21) Location -2/Testing Parts ------- > --- POWER (2) -------- Micro Fission Core Light Antimatter Reactor > --- PROPULSION (4) --- Cooled Q-thruster Cooled Q-thruster Cooled Q-thruster Cooled Q-thruster > --- UTILITY (11) ----- Improved Cryofiber Web Advanced Sensor Array Advanced Signal Interpreter Long-range Terrain Scanner Advanced Targeting Computer Core Analyzer Armor Integrity Analyzer Precision Matter Filter Improved Reaction Control System Focal Shield Hacking Suite > --- WEAPON (4) ------- Heavy Machine Gun Railgun Hypervelocity Railgun Axe > --- INVENTORY (5) ---- Advanced Heat Sink Improved Phase Shifter Improved Hardlight Generator Peak State ------------ > --- POWER ------------ Micro Fission Core Light Antimatter Reactor > --- PROPULSION ------- Cooled Q-thruster Cooled Q-thruster Cooled Q-thruster Cooled Q-thruster > --- UTILITY ---------- Improved Cryofiber Web Advanced Sensor Array Advanced Signal Interpreter Long-range Terrain Scanner Advanced Targeting Computer Core Analyzer Armor Integrity Analyzer Armor Integrity Analyzer Precision Matter Filter Focal Shield Hacking Suite > --- WEAPON ----------- Heavy Machine Gun Railgun Hypervelocity Railgun Axe > --- INVENTORY -------- Advanced Heat Sink Improved Reaction Control System Improved Phase Shifter Improved Hardlight Generator [Rating: 130] Favorites ----------- Power Light Antimatter Reactor Engine Light Ion Engine Power Core Micro Fission Core Reactor Light Antimatter Reactor Propulsion Flight Unit Leg Aluminum Leg Wheel Wheel Flight Unit Flight Unit Utility Improved Terrain Scanner Device Improved Terrain Scanner Processor Advanced Targeting Computer Hackware System Shield Protection Medium Armor Plating Weapon Heavy Machine Gun Energy Gun EM Pulse Gun Ballistic Gun Heavy Machine Gun Special Weapon Mining Laser Impact Weapon Makeshift Hammer Slashing Weapon Axe Build | -11 -10 -10 -8 -8 -6 -6 -5 -5 -4 -3 -2 -2 ------- Run | Yrd Mat Sub Rec Scr Fac DSF Fac Ext Fac Res Res Tes Slots Evolved 17 | 4 . 1 . 3 6 . 1 . 1 . 1 . Power 1 | . . . . . 1 . . . . . . . Propulsion 3 | 1 . . . 1 1 . . . . . . . Utility 10 | 2 . 1 . 1 3 . 1 . 1 . 1 . Weapon 3 | 1 . . . 1 1 . . . . . . . Parts Attached 59 | 4 1 4 . 6 . 11 7 . 8 8 10 . Power 5 | . . . . 1 . . . . 2 1 1 . Engine 2 | . . . . 1 . . . . 1 . . . Core 1 | . . . . . . . . . . . 1 . Reactor 2 | . . . . . . . . . 1 1 . . Propulsion 19 | 2 . 2 . . . 5 . . 2 3 5 . Treads . | . . . . . . . . . . . . . Leg . | . . . . . . . . . . . . . Wheel 2 | 2 . . . . . . . . . . . . Hover . | . . . . . . . . . . . . . Flight 17 | . . 2 . . . 5 . . 2 3 5 . Utility 21 | 1 . . . 3 . 1 6 . 4 2 4 . Device 10 | 1 . . . . . 1 3 . 3 . 2 . Storage . | . . . . . . . . . . . . . Processor 7 | . . . . 1 . . 2 . . 2 2 . Hackware 3 | . . . . 1 . . 1 . 1 . . . Protection 1 | . . . . 1 . . . . . . . . Artifact . | . . . . . . . . . . . . . Weapon 14 | 1 1 2 . 2 . 5 1 . . 2 . . Energy Gun 4 | 1 . 2 . . . 1 . . . . . . Energy Cannon . | . . . . . . . . . . . . . Ballistic Gun 7 | . . . . 2 . 3 . . . 2 . . Ballistic Cannon . | . . . . . . . . . . . . . Launcher . | . . . . . . . . . . . . . Special Weapon 1 | . 1 . . . . . . . . . . . Impact Weapon 1 | . . . . . . 1 . . . . . . Slashing Weapon 1 | . . . . . . . 1 . . . . . Piercing Weapon . | . . . . . . . . . . . . . Special Melee Weapon . | . . . . . . . . . . . . . Unidentified Prototypes 2 | . . . . . . . 1 . . . 1 . Corrupted Parts 1 | 1 . . . . . . . . . . . . System Corruption 1 | 1 . . . . . . . . . . . . Parts Lost 1 | . . . . . . . . . . . 1 . Power . | . . . . . . . . . . . . . Propulsion . | . . . . . . . . . . . . . Utility 1 | . . . . . . . . . . . 1 . Weapon . | . . . . . . . . . . . . . Highest Loss Streak 1 | . . . . . . . . . . . 1 . To Critical Strikes . | . . . . . . . . . . . . . Average Backups 2 | . 1 1 4 3 3 3 4 5 4 3 3 3 Power . | . . . . . . . . 1 . . . . Propulsion . | . . . . . 1 . . . . . . . Utility 1 | . . . . . . 1 1 2 2 3 3 3 Weapon 1 | . 1 1 4 2 2 1 2 2 . . . . Tool/Special . | . . . . . . . . . . . . . Unused Backups 9 | . . 2 . 2 . 2 . . 2 . . 1 Power 1 | . . 1 . . . . . . . . . . Propulsion 1 | . . . . . . 1 . . . . . . Utility 3 | . . 1 . 1 . . . . . . . 1 Weapon 4 | . . . . 1 . 1 . . 2 . . . Tool/Special . | . . . . . . . . . . . . . Average Slot Usage (%) 87 | . 87 78 77 95 58 62 79 94 87 93 90 100 Engine 6 | . 12 11 11 10 6 4 5 5 2 . . . Reactor 1 | . . . . . . . . . 2 9 7 4 Wheel 2 | . 25 5 . . . . . . . . . . Flight 18 | . . 17 22 21 12 20 21 21 16 15 16 19 Device 17 | . 12 11 11 10 6 7 18 21 24 24 23 28 Processor 13 | . 12 11 11 14 6 5 6 15 11 15 16 19 Hackware 5 | . . . . 10 6 5 6 10 10 9 4 4 Protection 1 | . . . . 6 6 . . . . . . . Energy Gun 6 | . 22 16 22 7 . 3 . . . . . . Ballistic Gun 9 | . . . . 13 12 9 15 15 14 15 14 14 Special Weapon 1 | . 2 5 . . . . . . . . . . Slashing Weapon 2 | . . . . . . . 4 5 4 5 4 4 Peak Build Rating 130 | 9 9 11 11 27 26 55 76 76 97 117 130 130 Average Rating 56 | 7 9 9 11 23 26 40 65 76 85 112 117 130 On Entrance 49 | 4 9 9 11 11 26 26 51 76 76 97 114 130 Naked Turns . | . . . . . . . . . . . . . Heaviest Build 56 | 8 8 9 9 24 24 30 36 36 42 56 56 50 Greatest Support 57 | 25 25 25 13 18 18 31 36 36 40 57 57 53 Greatest Overweight (x) 2 | . . . . 1 1 1 . . 2 1 1 . Average Overweight (x) . | . . . . . 1 . . . . . . . Largest Inventory Capacity 5 | 4 4 4 4 4 5 5 5 5 5 5 5 5 Average Capacity 4 | 4 4 4 4 4 4 5 5 5 5 5 5 5 Most Carried 5 | 2 1 4 4 4 3 5 5 5 5 5 5 3 Average Carried 2 | . 1 1 4 3 3 2 4 5 4 3 3 3 Final Capacity 5 | 4 4 4 4 4 5 5 5 5 5 5 5 5 Final Carried 5 | 1 1 4 4 3 3 5 5 5 3 4 3 3 Class Distribution -------------------- 51% | Hacker-Mutant 26% | Hacker-Scout 10% | Wizard-Scout 5% | Wizard-Assassin 3% | Hacker-Sprinter Dominant Class ---------------- Hacker-Mutant | -10/Materials Hacker-Mutant | -10/Subcaves Hacker-Mutant | -8/Recycling Hacker-Mutant | -8/Scraptown Hacker-Mutant | -6/Factory Hacker-Sprinter | -6/DSF Hacker-Scout | -5/Factory Wizard-Scout | -5/Extension Wizard-Assassin | -4/Factory Hacker-Scout | -3/Research Hacker-Scout | -2/Research Hacker-Scout | -2/Testing Resources | -11 -10 -10 -8 -8 -6 -6 -5 -5 -4 -3 -2 -2 ----------- Run | Yrd Mat Sub Rec Scr Fac DSF Fac Ext Fac Res Res Tes Matter Collected 1831 | 240 . 90 . 10 52 86 346 . 246 321 186 254 Remotely . | . . . . . . . . . . . . . Salvage Created 3546 | 159 123 232 . . . 111 474 . 230 381 561 1275 Parts 208 | 12 4 22 . . . 11 9 . 19 21 24 86 Haulers Intercepted . | . . . . . . . . . . . . . Recyclers Shooed 1 | . . . . . . . . . . . . 1 Parts Field Recycled . | . . . . . . . . . . . . . Retrieved Matter . | . . . . . . . . . . . . . Parts Self-Destructed . | . . . . . . . . . . . . . Prevented . | . . . . . . . . . . . . . Kills | -11 -10 -10 -8 -8 -6 -6 -5 -5 -4 -3 -2 -2 ------- Run | Yrd Mat Sub Rec Scr Fac DSF Fac Ext Fac Res Res Tes Combat Hostiles Destroyed 61 | . 2 12 . . . 8 4 . 5 6 7 17 Melee 1 | . . . . . . . . . . . 1 . Guns 53 | . 1 9 . . . 5 4 . 5 6 6 17 AOE 3 | . 1 2 . . . . . . . . . . Classes Destroyed 14 | 2 1 4 . . . 1 . . 1 . 1 4 Worker 2 | . . . . . . . . . . . 1 1 Builder 1 | . . . . . . . . . . . . 1 Tunneler 3 | 3 . . . . . . . . . . . . Recycler 4 | 1 . . . . . . 1 . 1 . . 1 Operator 2 | . . . . . . . . . . . . 2 Turret 2 | . . 2 . . . . . . . . . . Watcher 6 | . . . . . . . . . 2 2 . 2 Swarmer 18 | . . 6 . . . 2 . . 4 2 . 4 Cutter 12 | . . . . . . 6 . . . 3 3 . Grunt 12 | . 2 2 . . . . 2 . . . 3 3 Sentry 6 | . . 1 . . . . 2 . 1 1 1 . Hunter 3 | . . . . . . . . . . . . 3 Programmer 7 | . . . . . . . . . . . . 7 Subdweller 3 | . . 3 . . . . . . . . . . Best Kill Streak 15 | 2 2 7 . . . 8 5 . 4 4 3 15 Combat Bots Only 13 | . 2 5 . . . 8 2 . 4 3 3 13 Max Kills in Single Turn 3 | 1 1 2 . . . 1 1 . 3 1 2 2 Gunslinging 2 | . . . . . . . . . 2 . 1 . Exploded 1 | . 1 1 . . . . . . . . . . Melee 1 | . . . . . . . . . . . 1 . Uniques/NPCs Destroyed . | . . . . . . . . . . . . . Combat | -11 -10 -10 -8 -8 -6 -6 -5 -5 -4 -3 -2 -2 -------- Run | Yrd Mat Sub Rec Scr Fac DSF Fac Ext Fac Res Res Tes Hostile Shots Fired 459 | . 4 104 . . . 37 23 14 41 31 72 133 Missed 235 | . 2 54 . . . 20 8 7 14 12 39 79 Hits 224 | . 2 50 . . . 17 15 7 27 19 33 54 Melee 20 | . . . . . . 11 . . . 6 3 . Projectile 204 | . 2 50 . . . 6 15 7 27 13 30 54 AOE 6 | . . . . . . 1 . . . 2 3 . Critical Strikes 16 | . . . . . . 4 3 1 2 2 1 3 Damage Taken 2838 | . 16 325 . . . 327 201 123 364 356 591 535 Core 2275 | . 12 266 . . . 262 160 96 295 278 466 440 Absorbed by Shields . | . . . . . . . . . . . . . Redirected to Core 1861 | . 12 176 . . . 205 138 96 228 260 427 319 Ignored by Resistances 2177 | . 9 218 . . . 188 118 72 235 329 434 574 Core Remaining (%) 82 | 100 . . . 87 . 78 . 67 88 73 . . Volleys Fired 159 | 7 5 44 . . . 9 12 . 8 17 11 46 Largest 3 | 2 2 2 . . . 3 3 . 3 3 3 3 Hottest 110 | 80 100 100 . . . 110 90 . 90 105 105 105 Shots Fired 402 | 9 8 78 . . . 26 36 . 23 51 33 138 Gun 390 | 9 6 68 . . . 26 36 . 23 51 33 138 Cannon . | . . . . . . . . . . . . . Launcher . | . . . . . . . . . . . . . Special 12 | . 2 10 . . . . . . . . . . Kinetic 298 | . . . . . . 17 36 . 23 51 33 138 Thermal 12 | . 2 10 . . . . . . . . . . Explosive . | . . . . . . . . . . . . . Electromagnetic 92 | 9 6 68 . . . 9 . . . . . . Robot Hit Streak 47 | 2 8 27 . . . 5 16 . 18 36 33 47 Robot Miss Streak 2 | 1 . 1 . . . 2 1 . 1 2 . 1 Penetration Max 1 | . . . . . . . . . . . 1 1 Secondary Targets 17 | . . 3 . . . 1 1 . 2 2 2 6 Max Gunslinging Chain 2 | . . 1 . . . 1 1 . 2 1 1 1 Shots Hit Robots 330 | 6 6 61 . . . 19 32 . 19 38 29 120 Core Hits 171 | 4 4 27 . . . 10 15 . 13 21 20 57 Critical Kills 14 | . . . . . . 1 . . 1 2 2 8 Critical Parts Destroyed 16 | . . . . . . 1 . . . 1 2 12 Critical Strikes 32 | . . . . . . 3 1 . 1 3 4 20 Destroy 30 | . . . . . . 1 1 . 1 3 4 20 Corrupt 1 | . . . . . . 1 . . . . . . Smash 1 | . . . . . . 1 . . . . . . Melee Attacks 31 | . . . . . . 7 6 . 4 2 7 5 Impact 7 | . . . . . . 7 . . . . . . Slashing 24 | . . . . . . . 6 . 4 2 7 5 Piercing . | . . . . . . . . . . . . . Sneak Attacks 1 | . . . . . . . . . . . . 1 Combat Hostiles . | . . . . . . . . . . . . . Follow-up Attacks . | . . . . . . . . . . . . . Damage Inflicted 7009 | 83 245 961 . . . 475 721 . 453 776 791 2504 Guns 6022 | 83 64 822 . . . 298 721 . 453 776 583 2222 Cannons . | . . . . . . . . . . . . . Explosions 407 | . 181 139 . . . . . . . . . 87 Melee 580 | . . . . . . 177 . . . . 208 195 Ramming . | . . . . . . . . . . . . . Kinetic 4950 | . . . . . . 195 721 . 453 776 583 2222 Thermal 407 | . 181 139 . . . . . . . . . 87 Explosive . | . . . . . . . . . . . . . Electromagnetic 1072 | 83 64 822 . . . 103 . . . . . . Impact 177 | . . . . . . 177 . . . . . . Slashing 403 | . . . . . . . . . . . 208 195 Piercing . | . . . . . . . . . . . . . Highest Corruption 1 | 1 1 1 1 . . . . . . . . . Average Corruption 1 | 1 1 1 1 . . . . . . . . . Corruption Purged . | . . . . . . . . . . . . . Corruption Blocked . | . . . . . . . . . . . . . Effects 11 | 1 1 8 1 . . . . . . . . . Message Errors 4 | . 1 3 . . . . . . . . . . Heat Flow Errors 3 | 1 . 2 . . . . . . . . . . Energy Discharges 2 | . . 1 1 . . . . . . . . . Data Loss (minor) 2 | . . 2 . . . . . . . . . . Overload Shots . | . . . . . . . . . . . . . Overflow Damage 149 | . 26 . . . . 75 . . . . . 48 Projectiles . | . . . . . . . . . . . . . Explosions 32 | . 26 . . . . . . . . . . 6 Melee 117 | . . . . . . 75 . . . . . 42 Knockbacks 2 | . . . . . . 2 . . . . . . Impact 2 | . . . . . . 2 . . . . . . Kinetic . | . . . . . . . . . . . . . Secondary . | . . . . . . . . . . . . . Self-Inflicted Damage . | . . . . . . . . . . . . . Shots . | . . . . . . . . . . . . . Rammed . | . . . . . . . . . . . . . Targets Rammed . | . . . . . . . . . . . . . Kicked . | . . . . . . . . . . . . . Crushed . | . . . . . . . . . . . . . Highest Temperature 229 | 164 60 229 . . . 72 . . . . . . Average Temperature 42 | 56 25 71 . . . 24 . . . . . . Received Heat Transfer 681 | . 15 234 . . . . 135 24 111 18 126 18 Siege Activations . | . . . . . . . . . . . . . Martial Activations . | . . . . . . . . . . . . . Shielding Activations . | . . . . . . . . . . . . . Robots Disrupted . | . . . . . . . . . . . . . Combat Hostiles . | . . . . . . . . . . . . . Robots Corrupted 4 | . . 1 . . . 3 . . . . . . Combat Hostiles 4 | . . 1 . . . 3 . . . . . . Parts Fried 16 | . . 8 . . . 8 . . . . . . Impact Corruptions 5 | . . . . . . 5 . . . . . . Robots Melted . | . . . . . . . . . . . . . Combat Hostiles . | . . . . . . . . . . . . . Parts Melted . | . . . . . . . . . . . . . Heat Transferred 400 | . 200 150 . . . . . . . . . 50 Parts Sabotaged . | . . . . . . . . . . . . . Parts Stolen . | . . . . . . . . . . . . . Parts Stripped . | . . . . . . . . . . . . . Power Chain Reactions 6 | . 1 3 . . . . . . . . . 2 Alert | -11 -10 -10 -8 -8 -6 -6 -5 -5 -4 -3 -2 -2 ------- Run | Yrd Mat Sub Rec Scr Fac DSF Fac Ext Fac Res Res Tes Maximum Alert Level 1 | . . . . . . 1 . . . . 1 1 Low Security (%) 90 | 100 100 . 100 . 100 63 100 100 100 100 72 85 Level 1 9 | . . . . . . 36 . . . . 27 14 Level 2 . | . . . . . . . . . . . . . Level 3 . | . . . . . . . . . . . . . Level 4 . | . . . . . . . . . . . . . Level 5 . | . . . . . . . . . . . . . High Security . | . . . . . . . . . . . . . Max Security . | . . . . . . . . . . . . . Sterilizations 1 | . . . . . . 1 . . . . . . Peak Influence 253 | 10 54 . 143 . . 209 131 1 94 142 253 246 Initial 143 | . 2 . 143 . . . 81 1 . 2 53 106 Average 62 | 2 20 . 135 . . 121 70 . 16 49 105 80 Influence Increases 2230 | 20 56 540 . . . 209 103 . 181 217 383 521 Destroy 0b10 Robot/C 1200 | . 40 220 . . . 160 80 . 100 120 140 340 Destroy 0b10 Robot/NC 90 | 20 . . . . . . 5 . 15 10 5 35 Destroy Leader 212 | . 10 20 . . . 30 10 . 24 34 30 54 Successful Hack 4 | . . . . . . . . . 4 . . . Disable Machine 20 | . . . . . . 4 . . . 4 4 8 Destroy Structure 89 | . 6 . . . . . 8 . 8 4 9 54 Partial Spotted 15 | . . . . . . . . . 15 . . . Lose Combat Pursuer 600 | . . 300 . . . 15 . . 15 45 195 30 Influence Decreases 2051 | 15 35 156 282 128 . . 308 4 174 97 257 595 Entered New Map 772 | . 3 17 267 128 . . 128 3 . 5 74 147 Time Decay 1216 | 15 32 139 15 . . . 180 1 174 92 120 448 Lost Part 10 | . . . . . . . . . . . 10 . Purge Threat 53 | . . . . . . . . . . . 53 . Squads Dispatched 15 | . . . . . . 2 4 . 1 2 3 3 Investigation 2 | . . . . . . . 1 . 1 . . . Extermination 4 | . . . . . . . . . . 1 1 2 Reinforcement 6 | . . . . . . 2 . . . 1 2 1 Assault . | . . . . . . . . . . . . . Garrison 3 | . . . . . . . 3 . . . . . Intercept . | . . . . . . . . . . . . . Searches Triggered . | . . . . . . . . . . . . . Construction Impeded . | . . . . . . . . . . . . . Haulers Reinforced . | . . . . . . . . . . . . . Active Scanning Responses . | . . . . . . . . . . . . . Cargo Convoy Interrupts . | . . . . . . . . . . . . . Stealth | -11 -10 -10 -8 -8 -6 -6 -5 -5 -4 -3 -2 -2 --------- Run | Yrd Mat Sub Rec Scr Fac DSF Fac Ext Fac Res Res Tes Distress Signals 8 | . . . . . . . . . 1 1 2 4 Communications Jammed . | . . . . . . . . . . . . . Distress Signals . | . . . . . . . . . . . . . Times Spotted 124 | . 2 27 . . . 8 6 7 11 12 25 26 Peak Tracking Total 10 | . 2 6 . . . 4 3 7 5 6 10 8 Tactical Retreats 13 | . . 2 . . . 1 . . 1 2 5 2 Traps | -11 -10 -10 -8 -8 -6 -6 -5 -5 -4 -3 -2 -2 ------- Run | Yrd Mat Sub Rec Scr Fac DSF Fac Ext Fac Res Res Tes Traps Triggered 7 | . . . . . . . 1 . 6 . . . Indirectly . | . . . . . . . . . . . . . Trap Hack Attempts . | . . . . . . . . . . . . . Triggered . | . . . . . . . . . . . . . Disarmed . | . . . . . . . . . . . . . Reprogrammed . | . . . . . . . . . . . . . Reused . | . . . . . . . . . . . . . Traps Extracted . | . . . . . . . . . . . . . Installed . | . . . . . . . . . . . . . Triggered . | . . . . . . . . . . . . . Machines | -11 -10 -10 -8 -8 -6 -6 -5 -5 -4 -3 -2 -2 ---------- Run | Yrd Mat Sub Rec Scr Fac DSF Fac Ext Fac Res Res Tes Machines Disabled 6 | . . 1 . . . 1 . . . 1 1 2 Max in Single Turn 2 | . . 1 . . . 1 . . . 1 1 2 Garrison Access 3 | . . . . . . . . . 1 . 1 1 Machines Repaired . | . . . . . . . . . . . . . Machines Dismantled . | . . . . . . . . . . . . . Machines Sabotaged . | . . . . . . . . . . . . . Overloaded Fab Kills . | . . . . . . . . . . . . . Hacking | -11 -10 -10 -8 -8 -6 -6 -5 -5 -4 -3 -2 -2 --------- Run | Yrd Mat Sub Rec Scr Fac DSF Fac Ext Fac Res Res Tes Machines Accessed 12 | . 1 1 . . 1 . . 1 4 1 2 1 Terminals 7 | . 1 . . . 1 . . 1 2 1 1 . Fabricators 1 | . . . . . . . . . 1 . . . Repair Stations . | . . . . . . . . . . . . . Recycling Units . | . . . . . . . . . . . . . Scanalyzers . | . . . . . . . . . . . . . Garrison Access 3 | . . . . . . . . . 1 . 1 1 Total Hacks 22 | . 1 1 . . 1 . . 1 8 3 6 1 Successful 18 | . 1 1 . . 1 . . 1 5 2 6 1 Failed 4 | . . . . . . . . . 3 1 . . Catastrophic . | . . . . . . . . . . . . . Database Lockouts . | . . . . . . . . . . . . . Manual 8 | . . . . . . . . . 2 3 3 . Terminals 16 | . 1 . . . 1 . . 1 5 3 5 . Fabricators 2 | . . . . . . . . . 2 . . . Repair Stations . | . . . . . . . . . . . . . Recycling Units . | . . . . . . . . . . . . . Scanalyzers . | . . . . . . . . . . . . . Garrison Access 3 | . . . . . . . . . 1 . 1 1 Terminal Hacks 13 | . 1 1 . . 1 . . 1 2 2 5 . Part Schematic 1 | . . . . . . . . . 1 . . . Open Door 1 | . . . . . . . . 1 . . . . Open DSF 1 | . . . . . 1 . . . . . . . Level Access Points 3 | . 1 . . . . . . . 1 1 . . Branch Access Points 2 | . . . . . . . . . . 1 1 . Unreport Threat 3 | . . . . . . . . . . . 3 . Hauler Manifests 1 | . . . . . . . . . . . 1 . Proto ID Catalog 1 | . . 1 . . . . . . . . . . Fabricator Hacks 2 | . . . . . . . . . 2 . . . Load Schematic 1 | . . . . . . . . . 1 . . . Build 1 | . . . . . . . . . 1 . . . Repair Station Hacks . | . . . . . . . . . . . . . Recycling Unit Hacks . | . . . . . . . . . . . . . Scanalyzer . | . . . . . . . . . . . . . Garrison Access Hacks 3 | . . . . . . . . . 1 . 1 1 Seal Access 3 | . . . . . . . . . 1 . 1 1 Unauthorized Hacks . | . . . . . . . . . . . . . Terminals . | . . . . . . . . . . . . . Fabricators . | . . . . . . . . . . . . . Repair Stations . | . . . . . . . . . . . . . Recycling Units . | . . . . . . . . . . . . . Scanalyzers . | . . . . . . . . . . . . . Garrison Access . | . . . . . . . . . . . . . Data Cores Recovered 1 | . . . . . . . . . . . . 1 Used . | . . . . . . . . . . . . . Hacking Detections 4 | . . . . . . . . . 2 1 1 . Full Trace Events 1 | . . . . . . . . . 1 . . . Feedback Events . | . . . . . . . . . . . . . Feedback Blocked . | . . . . . . . . . . . . . Robot Schematics Acquired . | . . . . . . . . . . . . . Robots Built . | . . . . . . . . . . . . . Authchips . | . . . . . . . . . . . . . Time . | . . . . . . . . . . . . . Total Robot Build Rating . | . . . . . . . . . . . . . Part Schematics Acquired 1 | . . . . . . . . . 1 . . . Parts Built 2 | . . . . . . . . . 2 . . . Authchips . | . . . . . . . . . . . . . Time 39 | . . . . . . . . . 39 . . . Total Part Build Rating 14 | . . . . . . . . . 14 . . . Parts Repaired . | . . . . . . . . . . . . . Time . | . . . . . . . . . . . . . Parts Recycled . | . . . . . . . . . . . . . Recycled Matter . | . . . . . . . . . . . . . Retrieved Matter . | . . . . . . . . . . . . . Retrieved Components . | . . . . . . . . . . . . . Parts Scanalyzed . | . . . . . . . . . . . . . Part Schematics Acquired . | . . . . . . . . . . . . . Parts Damaged . | . . . . . . . . . . . . . Bothacking | -11 -10 -10 -8 -8 -6 -6 -5 -5 -4 -3 -2 -2 ------------ Run | Yrd Mat Sub Rec Scr Fac DSF Fac Ext Fac Res Res Tes Used RIF Installer . | . . . . . . . . . . . . . Robots Hacked . | . . . . . . . . . . . . . Non-combat . | . . . . . . . . . . . . . Combat . | . . . . . . . . . . . . . Robot Hacks Applied . | . . . . . . . . . . . . . Relay Couplers Released . | . . . . . . . . . . . . . Fabnet Peak Effective % . | . . . . . . . . . . . . . Robots Rewired . | . . . . . . . . . . . . . Allies Hacked . | . . . . . . . . . . . . . Hacks Repelled . | . . . . . . . . . . . . . Allies | -11 -10 -10 -8 -8 -6 -6 -5 -5 -4 -3 -2 -2 -------- Run | Yrd Mat Sub Rec Scr Fac DSF Fac Ext Fac Res Res Tes Total Allies . | . . . . . . . . . . . . . Largest Group . | . . . . . . . . . . . . . Highest-Rated Group . | . . . . . . . . . . . . . Highest-Rated Ally . | . . . . . . . . . . . . . Total Orders . | . . . . . . . . . . . . . Ally Attacks . | . . . . . . . . . . . . . Total Damage . | . . . . . . . . . . . . . Kills . | . . . . . . . . . . . . . Allies Corrupted . | . . . . . . . . . . . . . Allies Melted . | . . . . . . . . . . . . . Intel | -11 -10 -10 -8 -8 -6 -6 -5 -5 -4 -3 -2 -2 ------- Run | Yrd Mat Sub Rec Scr Fac DSF Fac Ext Fac Res Res Tes Active Infowar (turns) 3999 | 51 93 1128 39 724 47 153 249 29 407 190 204 685 Sensors 717 | . . . . . . . . . . . 32 685 Terrain 3999 | 51 93 1128 39 724 47 153 249 29 407 190 204 685 Robot Analysis Total . | . . . . . . . . . . . . . Derelict Logs Recovered 1 | . . . . 1 . . . . . . . . Drone Launches . | . . . . . . . . . . . . . Drone Recoveries . | . . . . . . . . . . . . . Exploration | -11 -10 -10 -8 -8 -6 -6 -5 -5 -4 -3 -2 -2 ------------- Run | Yrd Mat Sub Rec Scr Fac DSF Fac Ext Fac Res Res Tes Turns Passed 4069 | 70 93 1128 39 724 47 153 249 29 458 190 204 685 Spaces Moved 3461 | 19 65 809 40 655 41 194 196 95 423 212 301 411 Core 12 | 2 . 3 . . . . . . 7 . . . Treads . | . . . . . . . . . . . . . Legs 1 | 1 . . . . . . . . . . . . Wheels 237 | 16 65 156 . . . . . . . . . . Hover . | . . . . . . . . . . . . . Flight 3211 | . . 650 40 655 41 194 196 95 416 212 301 411 Fastest Speed 21 | 50 80 37 37 37 117 28 29 29 29 34 21 21 Average Speed 53 | 78 80 45 37 104 117 32 29 29 58 37 33 21 Slowest Speed 150 | 120 80 80 37 117 117 117 29 29 150 119 117 21 Overloaded Moves . | . . . . . . . . . . . . . Propulsion Burnouts . | . . . . . . . . . . . . . Robots Hopped 4 | . . 1 . . . . . . . . 2 1 Potential Cave-ins 2 | . . . . . . . 2 . . . . . Cave-ins Triggered . | . . . . . . . . . . . . . Exploration Rate (%) 27 | 2 14 63 7 56 2 95 7 24 11 8 14 54 Regions Visited 12 Branch Regions 5 Pre-discovered Areas . | . . . . . . . . . . . . . Known Exits Taken 11 | 1 1 1 1 1 1 . 1 1 1 1 1 . Unknown Exits Taken . | . . . . . . . . . . . . . Scrap Searched 6 | . . 3 . 3 . . . . . . . . Spaces Dug 20 | . 2 2 . . . . 6 . 4 2 3 1 Terrain Destroyed 52 | . 6 10 . . . . 6 . 4 3 4 19 Melee 15 | . . . . . . . 6 . 4 2 2 1 Projectile 9 | . 2 3 . . . . . . . 1 2 1 AOE 27 | . 4 7 . . . . . . . . . 16 Terrain Rammed . | . . . . . . . . . . . . . Walls Destroyed . | . . . . . . . . . . . . . Machines Disabled . | . . . . . . . . . . . . . Actions | -11 -10 -10 -8 -8 -6 -6 -5 -5 -4 -3 -2 -2 --------- Run | Yrd Mat Sub Rec Scr Fac DSF Fac Ext Fac Res Res Tes Total 5295 | 65 93 1468 63 697 40 260 352 95 611 283 367 901 Wait 1375 | 30 23 587 24 25 . . 123 . 121 23 19 400 Move 3441 | 18 64 806 39 654 40 193 195 94 422 211 296 409 Hop 4 | . . 1 . . . . . . . . 2 1 Pick Up 57 | 5 . 5 . 4 . 15 3 . 8 9 8 . Fast Attach 21 | . . . . 4 . 3 3 1 8 . 2 . Attach 41 | 4 . 2 . 1 . 9 4 . 7 7 7 . Detach 3 | . . . . . . 1 1 . 1 . . . Swap 20 | . 1 6 . 2 . 3 . . 3 3 2 . Drop 41 | 1 . 2 . 7 . 10 . . 8 6 7 . Fire 159 | 7 5 44 . . . 9 12 . 8 17 11 46 Melee 31 | . . . . . . 7 6 . 4 2 7 5 Ram . | . . . . . . . . . . . . . Kick . | . . . . . . . . . . . . . Crush . | . . . . . . . . . . . . . Escape Stasis . | . . . . . . . . . . . . . Rewire . | . . . . . . . . . . . . . Trap . | . . . . . . . . . . . . . Miscellaneous 102 | . . 15 . . . 10 5 . 21 5 6 40 Route ------- -11/Scrapyard -10/Materials (discovered 4 exits: Mat x3 / *Sub) -10/Subcaves (discovered 3 exits: *Mat x2 / *Rec) -8/Recycling -8/Scraptown -6/Factory -6/DSF -5/Factory (discovered 2 exits: Upp / *Ext) -5/Extension -4/Factory (discovered 4 exits: *Res x4) -3/Research (discovered 5 exits: *Res x3 / *Qua x2) -2/Research (discovered 2 exits: *Tes x2) -2/Testing (discovered 1 exit: *Acc) History --------- Turn | Location | Event 1 | -11/Scrapyard | Upgraded with Propulsion slot (x1) 1 | -11/Scrapyard | Upgraded with Utility slot (x2) 1 | -11/Scrapyard | Upgraded with Weapon slot (x1) 2 | -11/Scrapyard | Identified exit to Materials 2 | -11/Scrapyard | Discovered exit to Materials (range 2) 71 | -11/Scrapyard | Entered Materials 103 | -10/Materials | Identified exit to Materials 140 | -10/Materials | Identified exit to Subcaves 140 | -10/Materials | Discovered exit to Subcaves (range 12) 164 | -10/Materials | Entered Subcaves 274 | -10/Subcaves | Shifting Twisted Machinery released Sub. Power Source 280 | -10/Subcaves | Shifting Twisted Machinery released Sub. Power Source 303 | -10/Subcaves | Build established: Hacker-Mutant 370 | -10/Subcaves | Reached level 2 378 | -10/Subcaves | Upgraded with Utility slot (x1) 471 | -10/Subcaves | Visited 4L-MR0's lab 493 | -10/Subcaves | Identified exit to Materials 493 | -10/Subcaves | Discovered exit to Materials (range 14) 560 | -10/Subcaves | Discovered exit to Materials (range 12) 993 | -10/Subcaves | Shifting Twisted Machinery released Sub. Machine Gun 996 | -10/Subcaves | Shifting Twisted Machinery released Riot Gun 1064 | -10/Subcaves | A swath of the cavern ceiling suddenly collapsed 1265 | -10/Subcaves | Identified exit to Recycling 1265 | -10/Subcaves | Discovered exit to Recycling (range 9) 1292 | -10/Subcaves | Entered Recycling 1294 | -8/Recycling | Reached level 3 1294 | -8/Recycling | Reached level 4 1294 | -8/Recycling | Reached level 5 1321 | -8/Recycling | Scanned before Scraplab entrance 1327 | -8/Recycling | Entered Scraplab 1330 | -8/Recycling | Identified exit to Scraptown 1330 | -8/Recycling | Discovered exit to Scraptown (range 2) 1331 | -8/Recycling | Entered Scraptown 1331 | -8/Scraptown | System corruption cleaned by C-Scrubber 1564 | -8/Scraptown | Visited UFD Registry 1564 | -8/Scraptown | Registered with UFD as "Metaltalker" 1580 | -8/Scraptown | Visited Junk Repository 1634 | -8/Scraptown | Visited Fellowship of the Rings 1671 | -8/Scraptown | Scanned Subdweller tech in exchange for log data 1675 | -8/Scraptown | Learned Research trap positions 1752 | -8/Scraptown | Visited Derelict Rescue Squad 1769 | -8/Scraptown | Visited Junk Repository 1821 | -8/Scraptown | Visited Science Guys 1836 | -8/Scraptown | Visited Research Penetration Think Tank 1871 | -8/Scraptown | Visited Scrap Suit Storage 1891 | -8/Scraptown | Visited Sword Containment 1911 | -8/Scraptown | Visited Chapter 10 1959 | -8/Scraptown | Upgraded with Propulsion slot (x1) 1959 | -8/Scraptown | Upgraded with Utility slot (x1) 1959 | -8/Scraptown | Upgraded with Weapon slot (x1) 1987 | -8/Scraptown | Met Optimus 1987 | -8/Scraptown | Reached level 6 1987 | -8/Scraptown | Accepted into 0bPrime 2037 | -8/Scraptown | Identified exit to Factory 2037 | -8/Scraptown | Discovered exit to Factory (range 15) 2055 | -8/Scraptown | Entered Factory 2057 | -6/Factory | Reached level 7 2057 | -6/Factory | Reached level 8 2057 | -6/Factory | Reached level 9 2057 | -6/Factory | Reached level 10 2057 | -6/Factory | Reached level 11 2057 | -6/Factory | Reached level 12 2067 | -6/Factory | Upgraded with Power slot (x1) 2067 | -6/Factory | Upgraded with Propulsion slot (x1) 2067 | -6/Factory | Upgraded with Utility slot (x3) 2067 | -6/Factory | Upgraded with Weapon slot (x1) 2102 | -6/Factory | Identified exit to DSF 2102 | -6/Factory | Entered DSF 2104 | -6/DSF | Reached level 13 2133 | -6/DSF | Additional patrols routed to DSF 2175 | -6/DSF | Identified exit to Factory 2175 | -6/DSF | Discovered exit to Factory (range 13) 2199 | -6/DSF | Reached level 14 2220 | -6/DSF | Destroyed 8 combat bots 2231 | -6/DSF | Sterilization system engaged 2251 | -6/DSF | Ambient heat levels rising (+10) 2255 | -6/DSF | Entered Factory 2257 | -5/Factory | Reached level 15 2276 | -5/Factory | Upgraded with Utility slot (x1) 2293 | -5/Factory | Garrison activated, responded to threat 2325 | -5/Factory | Reached level 16 2405 | -5/Factory | Identified exit to Extension 2405 | -5/Factory | Discovered exit to Extension (range 16) 2409 | -5/Factory | Identified exit to Upper Caves 2409 | -5/Factory | Discovered exit to Upper Caves (range 8) 2504 | -5/Factory | Entered Extension 2527 | -5/Extension | Spotted B-75 Beast 2527 | -5/Extension | Spotted B-75 Beast 2533 | -5/Extension | Identified exit to Factory 2533 | -5/Extension | Discovered exit to Factory (range 3) 2533 | -5/Extension | Entered Factory 2535 | -4/Factory | Reached level 17 2535 | -4/Factory | Reached level 18 2535 | -4/Factory | Reached level 19 2593 | -4/Factory | Upgraded with Utility slot (x1) 2691 | -4/Factory | Identified exit to Research 2805 | -4/Factory | Fabricated Lrn. Terrain Scanner (x2) 2991 | -4/Factory | Entered Research 2992 | -3/Research | Loaded intel: 78 trap records 2993 | -3/Research | Reached level 20 2993 | -3/Research | Reached level 21 2993 | -3/Research | Reached level 22 3036 | -3/Research | Identified exit to Quarantine 3036 | -3/Research | Identified exit to Research 3120 | -3/Research | Spotted B-90 Cyclops 3181 | -3/Research | Entered another Research area 3183 | -2/Research | Reached level 23 3183 | -2/Research | Reached level 24 3183 | -2/Research | Reached level 25 3185 | -2/Research | Identified exit to Testing 3240 | -2/Research | Upgraded with Utility slot (x1) 3240 | -2/Research | Spotted B-90 Cyclops 3248 | -2/Research | Spotted B-90 Cyclops 3303 | -2/Research | Core integrity fell below 50% 3305 | -2/Research | Reached level 26 3385 | -2/Research | Entered Testing 3387 | -2/Testing | Reached level 27 3615 | -2/Testing | Build established: Hacker-Scout 3890 | -2/Testing | Reached level 28 3976 | -2/Testing | Destroyed 13 combat bots 3985 | -2/Testing | Identified exit to Access 3985 | -2/Testing | Discovered exit to Access (range 15) 4070 | -2/Testing | Spotted PX-54XYNXKOGT 4070 | -2/Testing | Self-destructed Last Messages --------------- integrity (+255, depleted) 03969_ K-01 Serf collects debris. 03978_ Slug penetrates W-44 Eye. 03978_ HV Slug penetrates W-44 Eye. 03978_ HV Slug penetrates Wall. 03981_ W-44 Eye destroyed. 03981_ HV Slug penetrates U-05 Engineer. 03981_ U-05 Engineer suffers critical hit (Destroy). 03981_ U-05 Engineer destroyed. 03984_ U-05 Engineer builds a Door. 03985_ EXIT=FOUND: ACCESS 04003_ K-01 Serf cleans the Antiparticle Suffusor. 04062_ O-16 Technician: "IFF HANDSHAKE FAILED. SECURING TERMINAL." 04062_ Destroyed Hover Unit. 04062_ O-16 Technician destroyed. 04065_ Acquired data core, extracted dynamic key. Map ----- +----------------------------------------------------+ | """"" ## ########## ###########?## | | """"" =+ #################################### | | """"" ############################## | | ############################## """ | | [ ############################## ""T"" | | ####+############################?####### "" "" | | ? ???? + | | ??############# | | ############## | | ? ############## | | ##+######+#############??######################### | | # #### ################### | | #" ""#### ################### | | #" """#### ################### | | """ ##"" ""#### ################# | | ""F ## " ""#### "" "" ################# | | "" ####"""#### "" " "" ################# | | """ #########?# """" ################# | | """ ########### """""" ################# | | ########### """""""" ################# | | ################### """" ################# | | ################### ################# | | ################### ################### | | #########################+######################## | | ######################### ######################## | | #########################@######################## | | ###############?######### ######################## | | ################?######## ############## | | ######################### ############## | | ################# # ############# < | | ################# # ############# | | ################? " "" + #############"######### | | ############?##?# "R"" # ## ######### | | ################# """ # ## """ """ ######### | | ############??### # ## """ """ ## #### | | ###########???########## ## """ """ * ## #### | | ######################## ## ## #### | | ##########?#?###########/ ###########+### = ### | | ######??################ #### !### | | #####?###?###### # % ### ##"T# " | | ###???###???#?## """ # !### ##""# ### | | ######?######### """ + " ########## ### | | ##??#?#######?## """ # ###################### | | ??##?##?#????### # ! ###################### | | #??##?#?##??##?# "T" ############################ | | ???#?????#??###################################### | | | | | | | | | +----------------------------------------------------+ Best States ------------- Heat Dissipation 105 Energy Generation 47 Energy Capacity 240 Matter Stores 400 Matter Capacity 400 Sight Range 20 Robot Scan Range 18 Terrain Scan Range 24 Terrain Scan Density 1110 Base Temperature (-) 150 Armor Coverage 225 Resistance: KI 55 Resistance: TH 40 Resistance: EX 35 Resistance: EM 35 Resistance: I 35 Resistance: S 35 Resistance: P 35 Phase Shifting 10 Evasion (%) 75 Targeting Accuracy 8 Target Analysis 5 Core Analysis 6 Armor Integrity Analysis 30 Matter Filtering 50 Salvage Targeting 3 Offensive Hacking 50 Defensive Hacking 29 Item Schematics ----------------- Lrn. Terrain Scanner | -4/Factory | Hacked Robot Schematics ------------------ None Fabricated ------------ Lrn. Terrain Scanner | x2 | -4/Factory Repaired ---------- Nothing Alien Tech Used ----------------- None Achievements -------------- None Challenges ------------ None RPGLIKE | -11 -10 -10 -8 -8 -6 -6 -5 -5 -4 -3 -2 -2 --------- Run | Yrd Mat Sub Rec Scr Fac DSF Fac Ext Fac Res Res Tes Levels Raised 27 | . . 1 3 1 6 2 2 . 3 3 4 2 XP Earned 47438 | 6000 250 2200 3707 1516 9398 2573 3070 1000 3892 5141 5241 3450 XP Spent 45000 | 5995 . 1480 . 3600 11400 . 5920 . 4470 4620 4200 3315 Upgrades 82 | 16 . 3 . 4 11 . 17 . 7 6 5 13 Power Slot 1 | . . . . . 1 . . . . . . . Propulsion Slot 3 | 1 . . . 1 1 . . . . . . . Utility Slot 10 | 2 . 1 . 1 3 . 1 . 1 . 1 . Weapon Slot 3 | 1 . . . 1 1 . . . . . . . Core Integrity 15 | 1 . . . . . . 4 . 3 2 . 5 Heat Dissipation 10 | . . . . . . . 7 . . . . 3 Energy Generation 2 | 1 . . . . . . 1 . . . . . Matter Storage 2 | . . . . . . . 1 . 1 . . . Mass Support 5 | 1 . . . 1 . . 1 . . 2 . . Inventory Capacity 5 | 4 . . . . 1 . . . . . . . Sight Range 4 | 1 . . . . . . 1 . . 1 . 1 Sensor Range 1 | . . . . . . . . . . . . 1 Terrain Scan Density 11 | 3 . 2 . . 1 . . . 1 . 2 2 Ranged Accuracy 1 | 1 . . . . . . . . . . . . Hack Attack % 4 | . . . . . 3 . . . 1 . . . Hack Defense % 1 | . . . . . . . 1 . . . . . KI Resistance % 2 | . . . . . . . . . . . 1 1 TH Resistance % 1 | . . . . . . . . . . . 1 . KI Damage % 1 | . . . . . . . . . . 1 . . Protomatter Created 1133 | . . 245 . . . 109 . . 152 67 79 481 Integrity Restored 2169 | . . 249 . . . 207 120 . 456 99 132 906 Core 2115 | . . 195 . . . 207 120 . 456 99 132 906 Parts 54 | . . 54 . . . . . . . . . . Protomatter Decayed 372 | . . 109 . . . 40 29 . . 34 . 160 Game ------ Seed SuperchargedCompositeSabre Manual? 0 Play Time 00:40:09 Cumulative 1045.3 hours Start 2025.07.23 @ 22:32:03 End 2025.07.23 @ 23:22:16 Sessions 1 Manual Loads 0 Difficulty Explorer Special Mode Winter2019/RPGLIKE Game No. 330 Rogue 104 Adventurer 111 Explorer 115 Win Type - Total 48 Types 22/8/1/7/3/1/1/1/1/3 Lore% 97 Gallery% 99 Achievement% 97 Wizard Run 0 Options --------- Layout 2 ASCII 0 Keyboard 0 Movement Mouse Keybinds 0 Fullscreen 2 Font 24/Smallcaps Map View 50x44 Zoom Use 0% Tactical HUD 1 Map Filters NONE Filters NONE Steam 1 RUN: 661591bf-970a-434b-b1ae-283b02b9591e